fUSD/lending_fUSD_20260202
["ID","MTS","AMOUNT","RATE_DAILY","PERIOD"]
[404343783,1770070255271,-1009.29926928,0.00023,2]
[404343784,1770070255280,-450.0,0.00023,2]
[404343785,1770070255290,-181.55642338,0.00023014,2]
[404343786,1770070255301,-503.0,0.00023178,5]
[404343787,1770070255311,-473.77221156,0.000232,2]
[404343788,1770070255321,-22170.0,0.00023202,2]
[404343789,1770070255330,-410.61,0.00023261,2]
[404343790,1770070255340,-159.60859955,0.00023263,2]
[404343791,1770070255350,-163.0,0.000233,3]
[404343792,1770070255359,-180.26364618,0.0002349,2]
[404343793,1770070255369,-150.0,0.0002349,2]
[404343794,1770070255378,-150.0,0.0002349,2]
[404343795,1770070255388,-150.0,0.0002349,2]
[404343796,1770070255398,-150.0,0.0002349,2]
[404343797,1770070255407,-150.0,0.0002349,2]
[404343798,1770070255417,-150.0,0.0002349,2]
[404343799,1770070255610,-150.0,0.0002349,2]
[404343800,1770070255619,-150.0,0.0002349,2]
[404343801,1770070255629,-150.0,0.0002349,2]
[404343802,1770070255638,-200.0,0.000235,2]
[404343803,1770070255647,-416.03518578,0.00023617,2]
[404343804,1770070255656,-839.0,0.0002362,3]
[404343805,1770070255665,-150.01591605,0.00023942,2]
[404343806,1770070255675,-1022.82529235,0.00024,2]
[404343807,1770070255684,-3600.0,0.00024,2]
[404343808,1770070255694,-1236.95968522,0.00024,2]
[404343809,1770070255703,-150.0,0.00024,14]
[404343810,1770070255712,-503.0,0.00024014,6]
[404343811,1770070255721,-159.60859958,0.00024065,2]
[404343812,1770070255730,-410.61,0.00024191,2]
[404343813,1770070255740,-151.0,0.00024201,7]
[404343814,1770070255748,-640507.1700782,0.00024204,2]
[404343815,1770070255758,-352.713549,0.00024204,2]
[404343816,1770070255768,-352.713549,0.00024204,2]
[404343817,1770070255777,-352.713549,0.00024204,2]
[404343818,1770070255786,-352.713549,0.00024204,2]
[404343819,1770070255795,-151.0,0.00024204,2]
[404343820,1770070255804,-151.0,0.00024204,2]
[404343821,1770070255814,-822.14894,0.00024204,2]
[404343822,1770070255823,-822.14894,0.00024204,2]
[404343823,1770070255832,-822.14894,0.00024204,2]
[404343824,1770070255841,-822.14894,0.00024204,2]
[404343825,1770070255851,-173.41104,0.00024204,2]
[404343826,1770070255859,-173.41104,0.00024204,2]
[404343827,1770070255868,-173.41104,0.00024204,2]
[404343828,1770070255877,-173.41104,0.00024204,2]
[404343829,1770070255886,-151.0,0.00024204,2]
[404343830,1770070255895,-151.0,0.00024204,2]
[404343831,1770070255904,-167.02189,0.00024204,2]
[404343832,1770070255912,-167.02189,0.00024204,2]
[404343833,1770070255921,-167.02189,0.00024204,2]
[404343834,1770070255931,-167.02189,0.00024204,2]
[404343835,1770070255941,-3035.858789,0.00024204,2]
[404343836,1770070255950,-3035.858789,0.00024204,2]
[404343837,1770070255959,-3035.858789,0.00024204,2]
[404343838,1770070255968,-3035.858789,0.00024204,2]
[404343839,1770070255978,-2232.826482,0.00024204,2]
[404343840,1770070255988,-151.0,0.00024204,2]
[404343841,1770070255998,-2232.826482,0.00024204,2]
[404343842,1770070256007,-151.0,0.00024204,2]
[404343843,1770070256017,-583.294373,0.00024204,2]
[404343844,1770070256026,-2232.826482,0.00024204,2]
[404343845,1770070256035,-318.174447,0.00024204,2]
[404343846,1770070256044,-151.0,0.00024204,2]
[404343847,1770070256054,-583.294373,0.00024204,2]
[404343848,1770070256063,-318.174447,0.00024204,2]
[404343849,1770070256072,-151.0,0.00024204,2]
[404343850,1770070256081,-2232.826482,0.00024204,2]
[404343851,1770070256090,-583.294373,0.00024204,2]
[404343852,1770070256099,-318.174447,0.00024204,2]
[404343853,1770070256108,-583.294373,0.00024204,2]
[404343854,1770070256117,-318.174447,0.00024204,2]
[404343855,1770070256126,-151.0,0.00024204,2]
[404343856,1770070256135,-1311.465332,0.00024204,2]
[404343857,1770070256145,-1311.465332,0.00024204,2]
[404343858,1770070256154,-1311.465332,0.00024204,2]
[404343859,1770070256163,-1311.465332,0.00024204,2]
[404343860,1770070256172,-151.0,0.00024204,2]
[404343861,1770070256180,-151.0,0.00024204,2]
[404343862,1770070256189,-166.269928,0.00024204,2]
[404343863,1770070256198,-422.6060654,0.0002421,2]
[404343864,1770070256207,-3701.96913306,0.0002421,2]
[404343865,1770070256216,-151.0,0.0002421,2]
[404343866,1770070256228,-155.511067,0.0002421,2]
[404343867,1770070256236,-839.0,0.0002426,3]
[404343868,1770070256245,-839.0,0.0002426,3]
[404343869,1770070256254,-500.0,0.00024384,2]
[404343870,1770070256263,-150.0,0.00024384,2]
[404343871,1770070256273,-500.0,0.00024384,2]
[404343872,1770070256282,-500.0,0.00024384,2]
[404343873,1770070256291,-500.0,0.00024384,2]
[404343874,1770070256302,-150.0,0.00024384,2]
[404343875,1770070256311,-570.0,0.00024384,2]
[404343876,1770070256320,-150.10178686,0.00024384,2]
[404343877,1770070256329,-500.0,0.00024384,2]
[404343878,1770070256338,-479.0,0.00024384,2]
[404343879,1770070256347,-150.0,0.00024384,2]
[404343880,1770070256356,-500.0,0.00024384,2]
[404343881,1770070256365,-670.0,0.00024384,2]
[404343882,1770070256374,-500.0,0.00024384,2]
[404343883,1770070256383,-500.0,0.00024384,2]
[404343884,1770070256392,-150.0,0.00024384,2]
[404343885,1770070256401,-787.0,0.00024384,2]
[404343886,1770070256410,-500.0,0.00024384,2]
[404343887,1770070256419,-500.0,0.00024384,2]
[404343888,1770070256428,-150.0,0.00024384,2]
[404343889,1770070256437,-500.0,0.00024384,2]
[404343890,1770070256447,-150.0,0.00024384,2]
[404343891,1770070256456,-150.0,0.00024384,2]
[404343892,1770070256465,-150.96565967,0.00024384,2]
[404343893,1770070256474,-500.0,0.00024384,2]
[404343894,1770070256483,-500.0,0.00024384,2]
[404343895,1770070256492,-1106.0,0.00024384,2]
[404343896,1770070256501,-640.0,0.00024384,2]
[404343897,1770070256510,-832.0,0.00024384,2]
[404343898,1770070256519,-150.0,0.00024384,2]
[404343899,1770070256528,-150.0,0.00024439,2]
[404343900,1770070256538,-500.0,0.00024439,2]
[404343901,1770070256548,-500.0,0.00024439,2]
[404343902,1770070256558,-500.0,0.00024439,2]
[404343903,1770070256567,-500.0,0.00024439,2]
[404343904,1770070256576,-150.0,0.00024439,2]
[404343905,1770070256585,-570.0,0.00024439,2]
[404343906,1770070256594,-500.0,0.00024439,2]
[404343907,1770070256604,-479.0,0.00024439,2]
[404343908,1770070256613,-150.0,0.00024439,2]
[404343909,1770070256622,-500.0,0.00024439,2]
[404343910,1770070256634,-670.0,0.00024439,2]
[404343911,1770070256643,-500.0,0.00024439,2]
[404343912,1770070256652,-500.0,0.00024439,2]
[404343913,1770070256661,-150.38249848,0.00024439,2]
[404343914,1770070256670,-787.0,0.00024439,2]
[404343915,1770070256680,-500.0,0.00024439,2]
[404343916,1770070256689,-500.0,0.00024439,2]
[404343917,1770070256699,-150.0,0.00024439,2]
[404343918,1770070256708,-500.0,0.00024439,2]
[404343919,1770070256717,-500.0,0.00024439,2]
[404343920,1770070256728,-500.0,0.00024439,2]
[404343921,1770070256737,-1106.0,0.00024439,2]
[404343922,1770070256747,-640.0,0.00024439,2]
[404343923,1770070256756,-832.0,0.00024439,2]
[404343924,1770070256765,-150.0,0.00024494,2]
[404343925,1770070256774,-500.0,0.00024494,2]
[404343926,1770070256783,-500.0,0.00024494,2]
[404343927,1770070256793,-500.0,0.00024494,2]
[404343928,1770070256802,-500.0,0.00024494,2]
[404343929,1770070256811,-150.0,0.00024494,2]
[404343930,1770070256820,-570.0,0.00024494,2]
[404343931,1770070256829,-500.0,0.00024494,2]
[404343932,1770070256838,-479.0,0.00024494,2]
[404343933,1770070256847,-150.0,0.00024494,2]
[404343934,1770070256856,-500.0,0.00024494,2]
[404343935,1770070256866,-670.0,0.00024494,2]
[404343936,1770070256875,-500.0,0.00024494,2]
[404343937,1770070256884,-328.08780435,0.00024494,2]
[404343938,1770070256893,-787.0,0.00024494,2]
[404343939,1770070256903,-500.0,0.00024494,2]
[404343940,1770070256912,-156.23659199,0.00024494,2]
[404343941,1770070256921,-150.0,0.00024494,2]
[404343942,1770070256931,-500.0,0.00024494,2]
[404343943,1770070256939,-500.0,0.00024494,2]
[404343944,1770070256949,-500.0,0.00024494,2]
[404343945,1770070256958,-640.0,0.00024494,2]
[404343946,1770070256966,-1106.0,0.00024494,2]
[404343947,1770070256975,-832.0,0.00024494,2]
[404343948,1770070256984,-7230.28,0.000245,2]
[404343949,1770070256993,-151.0,0.00024548,2]
[404343950,1770070257003,-151.0,0.00024548,2]
[404343951,1770070257011,-282.25840253,0.00024548,2]
[404343952,1770070257020,-500.0,0.00024548,2]
[404343953,1770070257029,-500.0,0.00024548,2]
[404343954,1770070257039,-500.0,0.00024548,2]
[404343955,1770070257048,-583.41072536,0.00024548,2]
[404343956,1770070257057,-150.0,0.00024548,2]
[404343957,1770070257066,-570.0,0.00024548,2]
[404343958,1770070257076,-500.0,0.00024548,2]
[404343959,1770070257085,-479.0,0.00024548,2]
[404343960,1770070257095,-150.0,0.00024548,2]
[404343961,1770070257104,-500.0,0.00024548,2]
[404343962,1770070257113,-670.0,0.00024548,2]
[404343963,1770070257123,-500.0,0.00024548,2]
[404343964,1770070257132,-787.0,0.00024548,2]
[404343965,1770070257141,-500.0,0.00024548,2]
[404343966,1770070257150,-206.94602799,0.00024548,2]
[404343967,1770070257159,-500.0,0.00024548,2]
[404343968,1770070257168,-500.0,0.00024548,2]
[404343969,1770070257177,-500.0,0.00024548,2]
[404343970,1770070257186,-640.0,0.00024548,2]
[404343971,1770070257195,-1106.0,0.00024548,2]
[404343972,1770070257204,-832.0,0.00024548,2]
[404343973,1770070257213,-163.0,0.0002458,3]
[404343974,1770070257222,-555.54912376,0.00024592,2]
[404343975,1770070257233,-500.0,0.00024603,2]
[404343976,1770070257243,-500.0,0.00024603,2]
[404343977,1770070257253,-214.97672583,0.00024603,2]
[404343978,1770070257262,-570.0,0.00024603,2]
[404343979,1770070257273,-500.0,0.00024603,2]
[404343980,1770070257282,-479.0,0.00024603,2]
[404343981,1770070257291,-150.0,0.00024603,2]
[404343982,1770070257301,-500.0,0.00024603,2]
[404343983,1770070257310,-283.08294419,0.00024603,2]
[404343984,1770070257319,-670.0,0.00024603,2]
[404343985,1770070257328,-787.0,0.00024603,2]
[404343986,1770070257338,-500.0,0.00024603,2]
[404343987,1770070257347,-500.0,0.00024603,2]
[404343988,1770070257356,-500.0,0.00024603,2]
[404343989,1770070257365,-500.0,0.00024603,2]
[404343990,1770070257374,-640.0,0.00024603,2]
[404343991,1770070257383,-1106.0,0.00024603,2]
[404343992,1770070257392,-832.0,0.00024603,2]
[404343993,1770070257402,-167.83663657,0.0002465,2]
[404343994,1770070257411,-159.0,0.00024658,2]
[404343995,1770070257420,-159.0,0.00024658,2]
[404343996,1770070257430,-159.0,0.00024658,2]
[404343997,1770070257439,-159.0,0.00024658,2]
[404343998,1770070257448,-159.0,0.00024658,2]
[404343999,1770070257458,-159.0,0.00024658,2]
[404344000,1770070257467,-159.59248424,0.00024658,2]
[404344001,1770070257476,-1226.26,0.00024658,2]
[404344002,1770070257485,-1000.0,0.00024658,2]
[404344003,1770070257495,-151.0,0.00024658,2]
[404344004,1770070257504,-151.0,0.00024658,2]
[404344005,1770070257513,-151.0,0.00024658,2]
[404344006,1770070257522,-506.45210639,0.00024658,2]
[404344007,1770070257532,-500.0,0.00024658,2]
[404344008,1770070257541,-570.0,0.00024658,2]
[404344009,1770070257551,-500.0,0.00024658,2]
[404344010,1770070257560,-479.0,0.00024658,2]
[404344011,1770070257569,-155.65422092,0.00024658,2]
[404344012,1770070257578,-500.0,0.00024658,2]
[404344013,1770070257588,-670.0,0.00024658,2]
[404344014,1770070257597,-787.0,0.00024658,2]
[404344015,1770070257607,-500.0,0.00024658,2]
[404344016,1770070257616,-500.0,0.00024658,2]
[404344017,1770070257626,-500.0,0.00024658,2]
[404344018,1770070257635,-640.0,0.00024658,2]
[404344019,1770070257644,-1106.0,0.00024658,2]
[404344020,1770070257653,-832.0,0.00024658,2]
[404344021,1770070257663,-151.0,0.00024658,7]
[404344022,1770070257673,-151.0,0.00024658,7]
[404344023,1770070257682,-624.6280421,0.00024713,2]
[404344024,1770070257691,-500.0,0.00024713,2]
[404344025,1770070257700,-570.0,0.00024713,2]
[404344026,1770070257709,-479.0,0.00024713,2]
[404344027,1770070257719,-156.01499169,0.00024713,2]
[404344028,1770070257728,-670.0,0.00024713,2]
[404344029,1770070257737,-787.0,0.00024713,2]
[404344030,1770070257746,-480.77068013,0.00024713,2]
[404344031,1770070257756,-500.0,0.00024713,2]
[404344032,1770070257766,-500.0,0.00024713,2]
[404344033,1770070257775,-640.0,0.00024713,2]
[404344034,1770070257784,-1106.0,0.00024713,2]
[404344035,1770070257793,-832.0,0.00024713,2]
[404344036,1770070257803,-500.0,0.00024768,2]
[404344037,1770070257812,-570.0,0.00024768,2]
[404344038,1770070257822,-479.0,0.00024768,2]
[404344039,1770070257831,-670.0,0.00024768,2]
[404344040,1770070257840,-787.0,0.00024768,2]
[404344041,1770070257850,-500.0,0.00024768,2]
[404344042,1770070257860,-500.0,0.00024768,2]
[404344043,1770070257870,-640.0,0.00024768,2]
[404344044,1770070257879,-1106.0,0.00024768,2]
[404344045,1770070257889,-832.0,0.00024768,2]
[404344046,1770070257898,-207.87,0.000248,2]
[404344047,1770070257907,-151.0,0.000248,7]
[404344048,1770070257917,-151.0,0.000248,7]
[404344049,1770070257927,-151.0,0.000248,7]
[404344050,1770070257936,-200.0,0.000248,2]
[404344051,1770070257945,-366.56018115,0.00024822,2]
[404344052,1770070257954,-570.0,0.00024822,2]
[404344053,1770070257963,-479.0,0.00024822,2]
[404344054,1770070257972,-670.0,0.00024822,2]
[404344055,1770070257981,-787.0,0.00024822,2]
[404344056,1770070257991,-500.0,0.00024822,2]
[404344057,1770070258000,-562.96726022,0.00024822,2]
[404344058,1770070258009,-640.0,0.00024822,2]
[404344059,1770070258019,-1106.0,0.00024822,2]
[404344060,1770070258028,-832.0,0.00024822,2]
[404344061,1770070258038,-503.0,0.00024849,7]
[404344062,1770070258047,-570.0,0.00024877,2]
[404344063,1770070258056,-479.0,0.00024877,2]
[404344064,1770070258065,-670.0,0.00024877,2]
[404344065,1770070258074,-787.0,0.00024877,2]
[404344066,1770070258083,-500.0,0.00024877,2]
[404344067,1770070258092,-640.0,0.00024877,2]
[404344068,1770070258102,-1106.0,0.00024877,2]
[404344069,1770070258111,-832.0,0.00024877,2]
[404344070,1770070258120,-151.0,0.000249,7]
[404344071,1770070258129,-151.0,0.000249,7]
[404344072,1770070258138,-151.0,0.000249,7]
[404344073,1770070258147,-151.0,0.000249,7]
[404344074,1770070258155,-152.403429,0.000249,7]
[404344075,1770070258165,-151.0,0.000249,7]
[404344076,1770070258174,-119853.87623786,0.000249,2]
[404344077,1770070258436,-15998.93143533,0.000249,2]
[404344078,1770070258459,-31745.87099824,0.000249,2]
[404344079,1770070259010,-1120.43290127,0.000249,2]
[404344080,1770070259198,-170.567658,0.00024204,2]
[404344081,1770070259208,-151.0,0.00024204,2]
[404344082,1770070259217,-150.0,0.00024384,2]
[404344083,1770070259230,-9736.92916575,0.000249,2]
[404344084,1770070259260,-13177.90426045,0.000249,2]
[404344085,1770070259300,-151.0,0.00010824,2]
[404344086,1770070259309,-103.56974939,0.00011096,2]
[404344087,1770070259319,-47.43025061,0.00011096,2]
[404344088,1770070259328,-279.16174441,0.000249,2]
[404344089,1770070259339,-225056.85600469,0.000249,2]
[404344090,1770070259348,-570.0,0.00024932,2]
[404344091,1770070259357,-479.0,0.00024932,2]
[404344092,1770070259366,-670.0,0.00024932,2]
[404344093,1770070259375,-787.0,0.00024932,2]
[404344094,1770070259384,-500.0,0.00024932,2]
[404344095,1770070259393,-640.0,0.00024932,2]
[404344096,1770070259402,-1106.0,0.00024932,2]
[404344097,1770070259411,-832.0,0.00024932,2]
[404344098,1770070259420,-431.42848765,0.00024986,2]
[404344099,1770070259429,-570.0,0.00024987,2]
[404344100,1770070259439,-479.0,0.00024987,2]
[404344101,1770070259448,-670.0,0.00024987,2]
[404344102,1770070259456,-787.0,0.00024987,2]
[404344103,1770070259466,-500.0,0.00024987,2]
[404344104,1770070259475,-640.0,0.00024987,2]
[404344105,1770070259484,-832.0,0.00024987,2]
[404344106,1770070259493,-1106.0,0.00024987,2]
[404344107,1770070259502,-668.65185757,0.0002499,2]
[404344108,1770070259512,-833.92535153,0.0002499,2]
[404344109,1770070259521,-1113.03500578,0.00025,2]
[404344110,1770070259530,-207.35966515,0.00025,2]
[404344111,1770070259539,-1783.44778021,0.00025,2]
[404344112,1770070259547,-506.23131385,0.00025,2]
[404344113,1770070259557,-540.0,0.00025,2]
[404344114,1770070259567,-610.45936052,0.00025,2]
[404344115,1770070259576,-3042.07462426,0.00025,2]
[404344116,1770070259586,-7120.34427007,0.00025,2]
[404344117,1770070259595,-1063.82378759,0.00025,2]
[404344118,1770070259604,-167.2007972,0.00025,2]
[404344119,1770070259613,-170.89294905,0.00025,5]
[404344120,1770070259623,-531.0,0.00025,5]
[404344121,1770070259631,-500.0,0.00025,2]
[404344122,1770070259641,-500.0,0.00025014,2]
[404344123,1770070259650,-570.0,0.00025042,2]
[404344124,1770070259659,-479.0,0.00025042,2]
[404344125,1770070259668,-670.0,0.00025042,2]
[404344126,1770070259678,-787.0,0.00025042,2]
[404344127,1770070259687,-500.0,0.00025042,2]
[404344128,1770070259696,-640.0,0.00025042,2]
[404344129,1770070259706,-832.0,0.00025042,2]
[404344130,1770070259716,-1106.0,0.00025042,2]
[404344131,1770070259725,-570.0,0.00025096,2]
[404344132,1770070259736,-479.0,0.00025096,2]
[404344133,1770070259745,-670.0,0.00025096,2]
[404344134,1770070259755,-787.0,0.00025096,2]
[404344135,1770070259764,-500.0,0.00025096,2]
[404344136,1770070259773,-640.0,0.00025096,2]
[404344137,1770070259783,-832.0,0.00025096,2]
[404344138,1770070259793,-1106.0,0.00025096,2]
[404344139,1770070259802,-150.01591622,0.00025103,2]
[404344140,1770070259811,-410.61,0.00025122,2]
[404344141,1770070259820,-570.0,0.00025151,2]
[404344142,1770070259829,-479.0,0.00025151,2]
[404344143,1770070259838,-670.0,0.00025151,2]
[404344144,1770070259848,-787.0,0.00025151,2]
[404344145,1770070259856,-500.0,0.00025151,2]
[404344146,1770070259866,-640.0,0.00025151,2]
[404344147,1770070259875,-832.0,0.00025151,2]
[404344148,1770070259884,-1106.0,0.00025151,2]
[404344149,1770070259893,-155.0,0.00025199,2]
[404344150,1770070259902,-570.0,0.00025206,2]
[404344151,1770070259912,-479.0,0.00025206,2]
[404344152,1770070259921,-670.0,0.00025206,2]
[404344153,1770070259930,-787.0,0.00025206,2]
[404344154,1770070259939,-186.26916348,0.00025206,2]
[404344155,1770070259948,-640.0,0.00025206,2]
[404344156,1770070259957,-832.0,0.00025206,2]
[404344157,1770070259967,-1106.0,0.00025206,2]
[404344158,1770070259976,-500.0,0.00025223,2]
[404344159,1770070259985,-570.0,0.00025261,2]
[404344160,1770070259994,-479.0,0.00025261,2]
[404344161,1770070260003,-670.0,0.00025261,2]
[404344162,1770070260012,-787.0,0.00025261,2]
[404344163,1770070260021,-640.0,0.00025261,2]
[404344164,1770070260030,-832.0,0.00025261,2]
[404344165,1770070260039,-1106.0,0.00025261,2]
[404344166,1770070260048,-570.0,0.00025316,2]
[404344167,1770070260058,-479.0,0.00025316,2]
[404344168,1770070260067,-670.0,0.00025316,2]
[404344169,1770070260076,-787.0,0.00025316,2]
[404344170,1770070260086,-640.0,0.00025316,2]
[404344171,1770070260095,-832.0,0.00025316,2]
[404344172,1770070260104,-1106.0,0.00025316,2]
[404344173,1770070260114,-570.0,0.0002537,2]
[404344174,1770070260123,-479.0,0.0002537,2]
[404344175,1770070260132,-670.0,0.0002537,2]
[404344176,1770070260141,-787.0,0.0002537,2]
[404344177,1770070260151,-640.0,0.0002537,2]
[404344178,1770070260160,-832.0,0.0002537,2]
[404344179,1770070260169,-1106.0,0.0002537,2]
[404344180,1770070260179,-49492.42298363,0.0002539,2]
[404344181,1770070260188,-570.0,0.00025425,2]
[404344182,1770070260198,-479.0,0.00025425,2]
[404344183,1770070260207,-670.0,0.00025425,2]
[404344184,1770070260216,-787.0,0.00025425,2]
[404344185,1770070260229,-640.0,0.00025425,2]
[404344186,1770070260238,-832.0,0.00025425,2]
[404344187,1770070260247,-1106.0,0.00025425,2]
[404344188,1770070260256,-500.0,0.00025452,2]
[404344189,1770070260266,-570.0,0.0002548,2]
[404344190,1770070260275,-479.0,0.0002548,2]
[404344191,1770070260284,-670.0,0.0002548,2]
[404344192,1770070260293,-787.0,0.0002548,2]
[404344193,1770070260304,-640.0,0.0002548,2]
[404344194,1770070260314,-832.0,0.0002548,2]
[404344195,1770070260323,-1106.0,0.0002548,2]
[404344196,1770070260332,-500.0,0.00025534,2]
[404344197,1770070260341,-570.0,0.00025535,2]
[404344198,1770070260351,-479.0,0.00025535,2]
[404344199,1770070260360,-670.0,0.00025535,2]
[404344200,1770070260369,-787.0,0.00025535,2]
[404344201,1770070260379,-640.0,0.00025535,2]
[404344202,1770070260388,-832.0,0.00025535,2]
[404344203,1770070260397,-1106.0,0.00025535,2]
[404344204,1770070260406,-165.79,0.00025548,2]
[404344205,1770070260415,-570.0,0.00025589,2]
[404344206,1770070260424,-479.0,0.00025589,2]
[404344207,1770070260433,-670.0,0.00025589,2]
[404344208,1770070260443,-787.0,0.00025589,2]
[404344209,1770070260451,-640.0,0.00025589,2]
[404344210,1770070260460,-832.0,0.00025589,2]
[404344211,1770070260469,-1106.0,0.00025589,2]
[404344212,1770070260479,-616.0,0.00025637,2]
[404344213,1770070260488,-1334.0,0.00025637,2]
[404344214,1770070260497,-577.71455312,0.00025644,2]
[404344215,1770070260506,-487.66109776,0.00025644,2]
[404344216,1770070260515,-693.72276123,0.00025644,2]
[404344217,1770070260523,-802.41767568,0.00025644,2]
[404344218,1770070260532,-491.43207959,0.00025644,2]
[404344219,1770070260542,-834.75843928,0.00025644,2]
[404344220,1770070260551,-1410.0,0.00025664,2]
[404344221,1770070260560,-1271.0,0.00025664,2]
[404344222,1770070260569,-150.0,0.00025664,2]
[404344223,1770070260579,-1205.0,0.00025674,2]
[404344224,1770070260588,-917.0,0.00025674,2]
[404344225,1770070260597,-1316.0,0.00025674,2]
[404344226,1770070260607,-2445.0,0.00025674,2]
[404344227,1770070260616,-6579.0,0.00025674,2]
[404344228,1770070260625,-3253.0,0.00025674,2]
[404344229,1770070260634,-503.0,0.00025685,8]
[404344230,1770070260644,-600.46547227,0.0002599,2]
[404344231,1770070260653,-4519.55498247,0.00026,2]
[404344232,1770070260662,-216.32944453,0.00026,2]
[404344233,1770070260671,-274.61599532,0.00026265,2]
[404344234,1770070260680,-447.3913417,0.00026355,2]
[404344235,1770070260689,-27455.26394238,0.000264,2]
[404344236,1770070260698,-3367.84621236,0.00026465,2]
[404344237,1770070260708,-21864.14975436,0.00026465,2]
[404344238,1770070260717,-150.0,0.0002649,2]
[404344239,1770070260726,-150.0,0.0002649,2]
[404344240,1770070260735,-150.0,0.0002649,2]
[404344241,1770070260744,-150.0,0.0002649,2]
[404344242,1770070260754,-150.0,0.0002649,2]
[404344243,1770070260763,-7230.28,0.000265,2]
[404344244,1770070260772,-503.0,0.00026521,9]
[404344245,1770070260784,-200.0,0.00026784,2]
[404344246,1770070260794,-250.0,0.00027,2]
[404344247,1770070260804,-1033.83999388,0.00027,2]
[404344248,1770070260814,-530.0,0.00027,2]
[404344249,1770070260824,-2804.10942,0.00027,2]
[404344250,1770070260836,-550.0,0.00027,2]
[404344251,1770070260846,-2352.0,0.00027,2]
[404344252,1770070260860,-3685.94,0.00027123,2]
[404344253,1770070260871,-3347.86963037,0.00027284,2]
[404344254,1770070260881,-640507.1700782,0.00027309,2]
[404344255,1770070260895,-503.0,0.00027356,9]
[404344256,1770070260906,-150.0,0.00027369,2]
[404344257,1770070260917,-588.4,0.0002737,2]
[404344258,1770070260928,-479.4,0.0002737,2]
[404344259,1770070260938,-484.0,0.0002737,2]
[404344260,1770070260948,-695.8,0.0002737,2]
[404344261,1770070260958,-697.0,0.0002737,2]
[404344262,1770070260967,-539.8,0.0002737,2]
[404344263,1770070260977,-4109.2710984,0.0002739,2]
[404344264,1770070260986,-8116.88070918,0.0002739,2]
[404344265,1770070260996,-500.0,0.00027397,2]
[404344266,1770070261005,-500.0,0.00027397,2]
[404344267,1770070261015,-500.0,0.00027397,2]
[404344268,1770070261024,-500.0,0.00027397,2]
[404344269,1770070261032,-311.03248964,0.00027397,2]
[404344270,1770070261041,-220.0,0.00027397,2]
[404344271,1770070261053,-239.83331546,0.00027397,2]
[404344272,1770070261062,-1446.52,0.00027397,2]
[404344273,1770070261071,-687.53,0.00027397,30]
[404344274,1770070261080,-300.0,0.00027397,2]
[404344275,1770070261089,-1226.26,0.00027397,2]
[404344276,1770070261099,-519.17,0.00027397,2]
[404344277,1770070261114,-151.0,0.00027397,7]
[404344278,1770070261123,-273.478966,0.00027397,7]
[404344279,1770070261132,-750.0,0.00027397,20]
[404344280,1770070261141,-150.0,0.00027397,5]
[404344281,1770070261150,-159.30862363,0.00027397,5]
[404344282,1770070261159,-519.94408401,0.00027397,5]